Workbook

Sheet Instruktion
B2: Instruktion till mallen för budget/avstämning
B4: 1. | C4: Fyll i de förutsättningar som gäller för det aktuella projektet
C5: Ange om mallen ska användas för budgetering eller avstämning/tilläggsbetalning.
C6: Alla val påverkar beräkningarna så ange alla förutsättningar.
C7: Om du är osäker på någon förutsättning, kolla i avtalet eller fråga Avdelningen för forsknings-
C8: och samverkansstöd. Work programme avser när utlysningen till bidraget gjordes. IF/PF är för post docs
C9: och ITN/DN är för doktorander.
B11: 2. | C11: Resultatet genereras i tabell på sidan. De aktuella värdena som används vid beräkning
C12: finns uppe till höger.
B14: 3. | C14: För avstämning/tilläggsbetalning ange bokfört belopp i de vita cellerna.
B16: Tips | C16: Vita celler går bra att skriva i det aktuella värdet
C21: Det går också bra att hoppa mellan cellerna genom att använda tabulator-knappen
C23: Himmelfärgade celler innehåller en sk. rullgarinsmeny. När du ställer dig i cellen kommer en pil fram till höger om cellen och du kan göra ditt val.
C32: Testa=> | D32: Budgetering
B36: 4. | C36: Mallen gör vissa avstämningar för att undvika vanlig fel exemplvis:
D38: Räknar ut bokfört belopp mot beloppet i överenskommelsen med EU
B45: Checklista för samfinansiering
B47: 1 | C47: Ange bruttolön
B49: 2 | C49: Ange hur stor OH som institutionen tar för personalkostnader (SUHF-modellen).
B51: 3 | C51: Ange övriga planerade kostnader (resor, förbrukningsvaror mm).
B53: 4 | C53: För projekt med konsortsium (ex. doktorandnätverk) ange hur mycket som koordinatorn behåller av projektmedlen för koordinering. Ska regleas i konsortialavtalet (CA).
B55: 5 | C55: Mallen räknar ut ev. samfinansieringsbehov.
B58: Osäkerhetsfaktorer att känna till
B60: l | C60: Växelkursen ändras, det kan bli valutavinst eller valutaförluster (beräknad växelkurs (vid rapportering) vs. faktisk växelkurs (vid betalning))
B63: l | C63: OH på institutionen kan ändras
B65: l | C65: LKP-nivåer kan ändras vilket ändrar fördelningen mellan bruttolön och LKP i det bidrag som ges
B68: l | C68: Lön revideras regelbundet, gäller också för MSCA-forskare
B70: l | C70: Bankens växelkurs vid utbetalning av bidraget är annat än beräknad och faktiska växelkurs. Det kan bli valutaförlust eller valutavinst.

Sheet MSCA
B1: HEU & H2020 Budgetmall Marie Skłodowska-Curie Actions | BW1: Version: 240221
B2: Löneavgift gällande: | K2: 2024-01-01 | Y2: Doktorandstegen: | AG2: 2023-10-01
B4: Work program: | K4: H2020: 2014-2015 | T4: 2016-2017 | Z4: 2018-2020 | AF4: Horizon Europe: 2021-2024
C6: Ange förutsättningarna | AP6: Värden som används
C9: Mallens funktion | M9: Budgetering
C11: Work Programme | M11: 2021-2024 | S11: Åldersgrupp | AA11: Lön till anställda födda 1988- | AP11: Justerings-koefficient | BB11: =UT_koeficient -> 1.254 | BH11: Löneavgift Living | BP11: =UT_LKP_living*100&" %" -> 58 %
C13: Typ av projekt | M13: IF/PF | AP13: Living allowance (ej justerat) | BB13: =UT_living_allowance -> 5080 | BH13: Löneavgift Mobility | BP13: =UT_LKP_mobility*100&" %" -> 58 %
C15: Antal månader | M15: 36 | AP15: Mobility allowance | BB15: =UT_mobility_allowance -> 600 | BH15: Löneavgift Family | BP15: =UT_LKP_family*100&" %" -> 58 %
C17: Växelkurs (SEK/€) | M17: 10 | AP17: Family allowance | BB17: =UT_family_allowance -> 660 | BH17: =IF(AND(typ.projekt=ITN),"Ingångslön*","") ->  | BP17: =IF(AND(typ.projekt=ITN),29700*(1+UT_LKP_living),"") -> 
C19: Family allowance | M19: Ja | AA19: =IF(errorlevel>0,"Varning! Minst en (1) förutsättning är inte ifylld!",IF(UT_LKP_living=0,"Varning! Semesterdagar och åldersgrupp inte kompatibla!","")) ->  | AP19: Research, training, networking | BB19: =UT_research -> 1000 | BH19: =IF(AND(typ.projekt=ITN),"50% uppnåtts*","") ->  | BP19: =IF(AND(typ.projekt=ITN),30900*(1+UT_LKP_living),"") -> 
C21: =IF(AND(typ.projekt=ITN),"Doktorandnivå","") ->  | M21: Ingångslön | AP21: Management & Indirect costs | BB21: =UT_mgt_IDC -> 650 | BH21: =IF(AND(typ.projekt=ITN),"80% uppnåtts*","") ->  | BP21: =IF(AND(typ.projekt=ITN),32800*(1+UT_LKP_living),"") -> 
BH22: =IF(AND(typ.projekt=ITN),"*= Bruttolön + löneavgift enl. doktorandstegen fr. 2021-10-01","") -> 
C24: Bidrag till MSCA-forskaren | AX24: =IF(Funktion="Avstämning/Tilläggsbetalning","Avstämning/Tilläggsbetalning (SEK)","") -> 
AX27: =IF(AND(Funktion="Avstämning/Tilläggsbetalning",typ.projekt="ITN",svar.doktorandstegen="Nej"),"Tillägg måste göras för doktorandstegen!!!","") -> 
G28: Allowance | AX28: =IF(Funktion=Avstamning,"Bokförd lönekostnad","") ->  | BG28: =IF(Funktion=Avstamning,"Avvikelse","") ->  | BP28: =IF(Funktion=Avstamning,"Exklusive","") -> 
P29: PER MÅNAD | W29: HELA PERIODEN | AE29: PER MÅNAD | AM29: HELA PERIODEN | AX29: =IF(Funktion=Avstamning,"HELA PERIODEN","") ->  | BP29: =IF(Funktion=Avstamning,"Lönekostnader","") -> 
G31: Living | P31: =UT_living_allowance*UT_koeficient -> 6370.32 | W31: =P31*manader -> 229331.52 | AE31: =ROUND(P31*vaxelkurs,0) -> 63703 | AM31: =AE31*manader -> 2293308 | BG31: =IF(Funktion=Avstamning,AX31-AM31,"") ->  | BP31: =IF(Funktion=Avstamning,BG31/(1+UT_LKP_living),"") -> 
G32: Mobility | P32: =UT_mobility_allowance -> 600 | W32: =P32*manader -> 21600 | AE32: =ROUND(P32*vaxelkurs,0) -> 6000 | AM32: =AE32*manader -> 216000 | BG32: =IF(Funktion=Avstamning,AX32-AM32,"") ->  | BP32: =IF(Funktion=Avstamning,BG32/(1+UT_LKP_mobility),"") -> 
G33: Family | P33: =IF(familj="ja",UT_family_allowance,0) -> 660 | W33: =P33*manader -> 23760 | AE33: =ROUND(P33*vaxelkurs,0) -> 6600 | AM33: =AE33*manader -> 237600 | BG33: =IF(Funktion=Avstamning,AX33-AM33,"") ->  | BP33: =IF(Funktion=Avstamning,BG33/(1+UT_LKP_family),"") -> 
G35: SUMMA | P35: =SUM(P31:T33) -> 7630.32 | W35: =SUM(W31:AB33) -> 274691.52 | AE35: =SUM(AE31:AI33) -> 76303 | AM35: =SUM(AM31:AR33) -> 2746908
AY37: =IF(AND(Funktion="Avstämning/Tilläggsbetalning",typ.projekt="ITN"),"Lön har betalats minst i nivå med doktorandstegen","") ->  | BG37: =IF(Funktion="","",IF(Funktion="Budgetering","",IF(OR(BG31<0,BG32<0,BG33<0),"För lite har betalats i minst en (1) kategori",IF(OR(BG31>0,BG32>0,BG33>0),"''För mycket'' har betalats i minst en (1) kategori","")))) -> 
G38: Fördelning | AC38: =IF(doktorandniva="","",IF(AND(typ.projekt=ITN,doktorandniva=niva.ingangslon,kr.manad<kr.ingangslon),"Ingångs-doktorandlönen inkl LKP ("&kr.ingangslon&" kr) är högre än living allowance inkl. LKP ("&kr.manad&" kr).",IF(AND(typ.projekt=ITN,doktorandniva=niva.50,kr.manad<kr.50),"50%-nivå för doktorandlönen inkl LKP ("&kr.50&" kr) är högre än living allowance inkl. LKP ("&kr.manad&" kr).",IF(AND(typ.projekt=ITN,doktorandniva=niva.80,kr.manad<kr.80),"80%-nivån för doktorandlönen inkl LKP ("&kr.80&" kr) är högre än living allowance inkl. LKP ("&kr.manad&" kr).","")))) -> 
C41: LIVING | G41: Bruttolön | P41: =P31/(1+UT_LKP_living) -> 4031.848101 | W41: =P41*manader -> 145146.5316 | AE41: =ROUND(P41*vaxelkurs,0) -> 40318 | AM41: =AE41*manader -> 1451448 | AX41: Anteckningar
G42: ="Löneavgift ("&UT_LKP_living*100&"%)" -> Löneavgift (58%) | P42: =P41*UT_LKP_living -> 2338.471899 | W42: 84184.98835 | AE42: 23385 | AM42: 841860
C44: MOBILITY | G44: Brutto | P44: =P32/(1+UT_LKP_mobility) -> 379.7468354 | W44: 13670.88608 | AE44: 3797 | AM44: 136692 | AY44: Här går det bra att skriva anteckningar. Om du vill göra ny rad är det bara att använda [Alt]+[Enter] Tips är att spara denna fil vid budgetering och göra en ny vid avstämningen. Lycka till!
G45: ="Löneavgift ("&UT_LKP_mobility*100&"%)" -> Löneavgift (58%) | P45: =P44*UT_LKP_mobility -> 220.2531646 | W45: 7929.113924 | AE45: 2203 | AM45: 79308
C47: FAMILY | G47: Brutto | P47: =P33/(1+UT_LKP_family) -> 417.721519 | W47: 15037.97468 | AE47: 4177 | AM47: 150372
G48: ="Löneavgift ("&UT_LKP_family*100&"%)" -> Löneavgift (58%) | P48: =P47*UT_LKP_family -> 242.278481 | W48: 8722.025316 | AE48: 2423 | AM48: 87228
C50: SUMMA | P50: =P53+P54+P55 -> 7630.32 | W50: =W53+W54+W55 -> 274691.52 | AE50: =AE53+AE54+AE55 -> 76303 | AM50: =AM53+AM54+AM55 -> 2746908
C53: Varav | G53: Brutto | P53: =P41+P44+P47 -> 4829.316456 | W53: =P53*manader -> 173855.3924 | AE53: =ROUND(P53*vaxelkurs,0) -> 48293 | AM53: =AE53*manader -> 1738548
G54: Löneavgift | P54: =P42+P45+P48 -> 2801.003544 | W54: =P54*manader -> 100836.1276 | AE54: =ROUND(P54*vaxelkurs,0) -> 28010 | AM54: =AE54*manader -> 1008360
C59: Bidrag till institutionen (värden)
P64: PER MÅNAD | W64: HELA PERIODEN | AE64: PER MÅNAD | AM64: HELA PERIODEN
C66: Research/training/networking | P66: =UT_research -> 1000 | W66: =P66*manader -> 36000 | AE66: =ROUND(P66*vaxelkurs,0) -> 10000 | AM66: =AE66*manader -> 360000
C67: Management & Indirect cost | P67: =UT_mgt_IDC -> 650 | W67: =P67*manader -> 23400 | AE67: =ROUND(P67*vaxelkurs,0) -> 6500 | AM67: =AE67*manader -> 234000
C69: SUMMA | P69: =SUM(P66:T67) -> 1650 | W69: =SUM(W66:AB67) -> 59400 | AE69: =SUM(AE66:AI67) -> 16500 | AM69: =SUM(AM66:AR67) -> 594000
C74: Totalt bidrag
P79: PER MÅNAD | W79: HELA PERIODEN | AE79: PER MÅNAD | AM79: HELA PERIODEN
C81: Till MSCA-forskaren | P81: =P35 -> 7630.32 | W81: =W35 -> 274691.52 | AE81: =ROUND(P81*vaxelkurs,0) -> 76303 | AM81: =AE81*manader -> 2746908
C82: Till insitutionen | P82: =P69 -> 1650 | W82: =W69 -> 59400 | AE82: =ROUND(P82*vaxelkurs,0) -> 16500 | AM82: =AE82*manader -> 594000
C84: SUMMA | P84: =SUM(P81:T82) -> 9280.32 | W84: =SUM(W81:AB82) -> 334091.52 | AE84: =SUM(AE81:AI82) -> 92803 | AM84: =SUM(AM81:AR82) -> 3340908

Sheet Samfinansiering
BH1: =MSCA!BW1 -> Version: 240221
C3: Uppskattning av samfinansiering
AB6: Institutionens | AR6: Institutionens
AB7: % indirekta kostnader | AM7: indirekta | AU7: Total kostnad
S8: HELA PERIODEN | AB8: som belastar projektet | AM8: kostnader | AZ8: (direkta+indirekta)
C10: Allowances (alla) | S10: =((UT_living_allowance*UT_koeficient)+UT_mobility_allowance+IF(familj="ja",UT_family_allowance,0))*manader*vaxelkurs -> 2746915.2 | AM10: =S10*AB10 -> 0 | AU10: =S10+AM10 -> 2746915.2
Y12: Lönekostnader utöver bidraget från EU
C13: Inriktning bruttolön | S13: =IF(bruttolon>Bidrag.bruttolon,(bruttolon-Bidrag.bruttolon)*(100%+UT_LKP_living)*manader,0) -> 0 | AM13: =S13*AB13 -> 0 | AU13: =S13+AM13 -> 0
C14: =IF(bruttolon<Bidrag.bruttolon,"Bidraget till bruttolönen är "&Bidrag.bruttolon&" kr och ingår i ''Allowances (alla)'' lönedelar utöver det läggs till på rad 2","Lönekostnader utöver bidraget från EU") -> Bidraget till bruttolönen är 40318 kr och ingår i ''Allowances (alla)'' lönedelar utöver det läggs till på rad 2
C16: Övriga planerade direkta kostnader (ex. training, network, traveling, research)
AT17: 0
AT18: 0
AT19: 0
AT20: 0
AT21: 0
AT22: 0
AT23: 0
AT24: 0
AT25: 0
AR28: Summa | AU28: =IFERROR(AU10+AU13+SUM(AT17:AZ25),"") -> 2746915.2 | BB28: =IFERROR(AU28/vaxelkurs,"") -> 274691.52
E29: FÖLJ CHECKLISTAN PÅ INSTRUKTIONS-SIDAN! INFORMATION Uppskattningen av samfinansieringsbehovet baseras på bruttolönen, angiven växelkurs samt rådande nivå (%) för indirekta kostnader (OH) på institutionen. Livinga allowance är ett BIRDAG till personalkostnaderna och lönebildning ska ske enligt SU:s normala regelverk. Övriga planerade direkta kostnader måste också anges. OH beräknas enligt SUHF-modellen Osäkerheten/risken ligger i skillnaden mellan växelkursen som används i beräkning och den slutliga, faktiska, växelkursen. *) OBS! För ITN kan den som koordinerar projektet ta del av den budget för management som varje beneficiary får. Då måste vi ange hur mycket det är för att få en rättvisande bild. OM vi inte vet hur mycket koordinatorn tänker ta så är det en rekommendation att räkna med 30% av "Management & Indirect cost". Dock kan det faktiska avdraget såklart bli mindre eller större. Frågan kan väckas till koordinatorn vid ansökan för att få en mer rättvisande uppskattning för samfinasieringen. | AB29: Summa från EU (enligt GA) | AU29: =BB29*vaxelkurs -> 3340915.2 | BB29: =MSCA!W35+MSCA!W69 -> 334091.52
AB30: =IF(typ.projekt="ITN","*) Fyll i beloppet som koordinatorn behåller =>","") ->  | AU30: =BC30*vaxelkurs -> 0
AB31: Belopp till SU | AU31: =BB31*vaxelkurs -> 3340915.2 | BB31: =BB29-BC30 -> 334091.52
AB33: Uppskattad samfinansiering | AT33: =IFERROR(AU28-AU31,"") -> -594000 | BB33: =IFERROR(AT33/vaxelkurs,"") -> -59400
AZ35: =IF(AT33="","Något är fel, ingen beräkning av samfinansiering kan göras.",IF(AT33<0,"Vid minus (-) behövs ingen medfinansiering (under rådande växelkurs)","Projektet måste medfinasieras")) -> Vid minus (-) behövs ingen medfinansiering (under rådande växelkurs)
AD41: Här går det bra att skriva anteckningar. Om du vill göra ny rad är det bara att använda [Alt]+[Enter] Lycka till!

Sheet Calc (hidden)
E2: Funktion | F2: =Funktion -> Budgetering
C3: Input | D3: RAD | E3: Work Package | F3: =WP -> 2021-2024 | G3: =IF(F3=WP_1,2,IF(F3=WP_2,3,IF(F3=WP_3,4,5))) -> 5
D4: MATRIX | E4: Typ av projekt | F4: =typ.projekt -> IF/PF
E5: Antal månader | F5: =manader -> 36
E6: Växelkurs | F6: =vaxelkurs -> 10
D8: MATRIX
D9: RAD | E9: =MSCA!S11 -> Åldersgrupp | F9: =Aldersgrupp -> Lön till anställda födda 1988- | G9: =IF(AND(Funktion=Avstamning,Aldersgrupp=aldersgrupp.1),2,IF(AND(Funktion=Avstamning,aldersgrupp.2),3,IF(AND(Funktion=Budgetering,Aldersgrupp=aldersgrupp.1),4,5))) -> 5 | H9: =IF(AND(Funktion=Avstamning,Aldersgrupp=aldersgrupp.1),1,IF(AND(Funktion=Avstamning,aldersgrupp.2),2,IF(AND(Funktion=Budgetering,Aldersgrupp=aldersgrupp.1),3,4))) -> 4
E11: Family allowance | F11: =familj -> Ja
C13: 2 | D13: 3 | E13: 4 | F13: 5 | G13: 6 | H13: 7 | I13: 2 | J13: 3 | K13: 4
C14: Koefficient | D14: Living allowance | E14: Mobility allowance | F14: Family allowance | G14: Research, training, networking | H14: Management & Indirect costs | I14: LKP living | J14: LKP mobility | K14: LKP family
B15: Utput | C15: =IF($F$4=ITN,INDEX(tabell.ITN,$G$3,C13),INDEX(tabell.IF,$G$3,C13)) -> 1.254 | D15: 5080 | E15: 600 | F15: 660 | G15: 1000 | H15: 650 | I15: =INDEX(tabell.LKP,$G$9,I13) -> 0.58 | J15: =INDEX(tabell.LKP,$G$9,J13) -> 0.58 | K15: =INDEX(tabell.LKP,$G$9,K13) -> 0.58
A17: ITN/DN
B18: År | C18: Koefficient | D18: Living allowance | E18: Mobility allowance | F18: Family allowance | G18: Research, training, networking | H18: Management & Indirect costs
B19: 2014-2015 | C19: 1.117 | D19: 3110 | E19: 600 | F19: 500 | G19: 1800 | H19: 1200
B20: 2016-2017 | C20: 1.117 | D20: 3110 | E20: 600 | F20: 500 | G20: 1800 | H20: 1200
B21: 2018-2020 | C21: 1.218 | D21: 3270 | E21: 600 | F21: 500 | G21: 1800 | H21: 1200
B22: 2021-2024 | C22: 1.254 | D22: 3400 | E22: 600 | F22: 660 | G22: 1600 | H22: 1200
A24: IF/PF
B25: År | C25: Koefficient | D25: Living allowance | E25: Mobility allowance | F25: Family allowance | G25: Research, training, networking | H25: Management & Indirect costs
B26: 2014-2015 | C26: 1.117 | D26: 4650 | E26: 600 | F26: 500 | G26: 800 | H26: 650
B27: 2016-2017 | C27: 1.117 | D27: 4650 | E27: 600 | F27: 500 | G27: 800 | H27: 650
B28: 2018-2020 | C28: 1.218 | D28: 4880 | E28: 600 | F28: 500 | G28: 800 | H28: 650
B29: 2021-2024 | C29: 1.254 | D29: 5080 | E29: 600 | F29: 660 | G29: 1000 | H29: 650
J30: mobility+family genererar inte semestertillägg
H33: 1 | I33: 2 | J33: 3 | K33: 4
G34: 1 | H34: Tabell ALLA | I34: LKP living | J34: LKP mobility | K34: LKP family
C35: Error-koll | F35: Använda åldersgrupp? | G35: 2 | H35: =aldersgrupp.1 -> Lön till anställda födda 1953-1987 | I35: 0.558 | J35: 0.558 | K35: 0.558
C36: Om något indata saknas | F36: Nej | G36: 3 | H36: =aldersgrupp.2 -> Lön till anställda födda 1988- | I36: 0.558 | J36: 0.558 | K36: 0.558
B37: Funktion | C37: =IF(Funktion=0,1,"") ->  | G37: 4 | H37: =aldersgrupp.3 -> BUDGET anställda födda 1953-1987 | I37: 0.58 | J37: 0.58 | K37: 0.58
B38: WP | C38: =IF(WP=0,1,"") ->  | G38: 5 | H38: =aldersgrupp.4 -> BUDGET anställda födda 1988- | I38: 0.58 | J38: 0.58 | K38: 0.58
B39: Projekttyp | C39: =IF(typ.projekt=0,1,"") ->  | G39: 6
B40: Månader | C40: =IF(manader=0,1,"") ->  | G40: 7
B41: Växelkurs | C41: =IF(vaxelkurs=0,1,"") ->  | G41: 8
G42: 9
G43: 10
B44: Åldersgrupp | C44: =IF(Aldersgrupp=0,1,"") ->  | G44: 11
G45: 12
B46: Familje allow | C46: =IF(familj=0,1,"") ->  | G46: 13
B54: SUMMA | C54: =SUM(C37:C53) -> 0

Sheet Def (hidden)
B1: LEGEND | C1: Lista
C3: Work Package | E3: Typ av projekt | M3: Family allowance | O3: År för löneavgift
C4: 2014-2015 | E4: ITN/DN | M4: Ja | O4: 2010
C5: 2016-2017 | E5: IF/PF | M5: Nej | O5: 2011
C6: 2018-2020 | O6: 2012
C7: 2021-2024 | O7: 2013
O8: 2014
G9: Åldersgrupper | I9: Mallens funktion | K9: Doktorandnivå | M9: Doktorandstegen | O9: 2015-01-01 -- 2015-04-30
G10: Lön till anställda födda 1953-1987 | I10: Budgetering | K10: Ingångslön | M10: Ja | O10: 2015-05-01 -- 2015-07-31
G11: Lön till anställda födda 1988- | I11: Avstämning/Tilläggsbetalning | K11: 50% uppnåtts | M11: Nej | O11: 2015-08-01 -- 2015-12-31
F12: kanske inte behövs | G12: BUDGET anställda födda 1953-1987 | K12: 80% uppnåtts | O12: 2016-01-01 -- 2016-05-31
F13: kanske inte behövs | G13: BUDGET anställda födda 1988- | O13: 2016-06-01 -- 2016-12-31
O14: 2017
O15: 2018
C18: När nytt WP läggs till måste det definieras enligt "WP_X" samt att WP-listan måste expandera att inkludera det nya WP:et
